bitfinex/quotes_ETHUSD_20250611
["timestamp","ask_amount","ask_price","bid_price","bid_amount"]
[1749665651799,0.1776,2812.7,2812.2,0.1776]
[1749665652114,0.1776,2812.7,2812.3,0.0289855]
[1749665652513,3.553,2812.9,2812.5,0.8289]
[1749665652751,0.1776,2813.0,2812.5,1.0065]
[1749665653049,3.553,2813.4,2812.6,0.0289855]
[1749665653252,0.1776,2812.8,2812.6,0.0289855]
[1749665653954,3.553,2812.7,2812.6,0.0289855]
[1749665655148,14.3813,2812.7,2810.8,0.7688]
[1749665655366,10.8283,2812.7,2810.8,0.7688]
[1749665655689,4.798,2812.6,2811.2,0.7688]
[1749665655884,11.58893402,2812.2,2811.2,0.7688]
[1749665656177,3.55613081,2812.1,2811.2,0.7688]
[1749665656335,3.553,2812.0,2811.2,0.7688]
[1749665656536,3.553,2812.0,2810.6,10.0]
[1749665656738,15.1454021,2811.8,2810.8,0.7709]
[1749665656950,4.80156932,2811.7,2810.8,0.7709]
[1749665657150,3.55689449,2811.5,2810.8,0.7709]
[1749665657351,3.55689449,2811.5,2810.5,12.8030303]
[1749665657352,15.14193402,2811.4,2810.5,12.8030303]
[1749665657661,3.553,2811.3,2810.5,12.8030303]
[1749665658755,4.31049977,2811.2,2810.5,12.8030303]
[1749665658947,3.55785014,2810.7,2810.5,12.8030303]
[1749665659152,21.68375915,2810.6,2810.5,12.8030303]
[1749665659369,17.94275915,2810.6,2810.5,12.8030303]
[1749665659568,0.8318,2810.1,2808.1,0.8616]
[1749665659864,7.11216073,2810.5,2809.2,0.7799]
[1749665660185,3.55850649,2810.2,2809.2,0.7799]
[1749665660359,3.554,2810.1,2809.2,0.7799]
[1749665660561,11.58893402,2809.9,2808.8,0.7799]
[1749665660766,3.55944512,2809.5,2808.8,0.7799]
[1749665660963,3.55897216,2809.8,2808.8,0.7799]
[1749665661274,0.8128,2810.0,2808.8,0.7799]
[1749665661487,18.35793827,2809.9,2808.8,0.7799]
[1749665661688,14.799,2809.9,2808.8,0.7799]
[1749665662373,11.58893402,2809.7,2808.1,0.8238]
[1749665662573,4.34302119,2809.9,2808.1,0.8238]
[1749665662774,4.799,2809.8,2808.9,0.7527]
[1749665662947,4.799,2809.8,2808.1,0.04]
[1749665662948,0.7841,2809.9,2808.1,0.824]
[1749665663148,3.555,2809.8,2808.1,1.374]
[1749665663364,3.555,2809.7,2809.2,0.784]
[1749665663608,3.555,2809.6,2809.2,0.784]
[1749665664411,10.0,2810.4,2809.2,0.784]
[1749665664571,3.55856622,2810.2,2809.2,0.784]
[1749665664775,3.555,2810.1,2809.2,0.784]
[1749665665316,0.1776,2809.3,2809.2,0.784]
[1749665665528,3.555,2809.5,2809.2,0.784]
[1749665665690,0.1776,2809.7,2809.3,0.55]
[1749665665897,3.555,2810.2,2809.2,0.9616]
[1749665666098,3.556,2810.1,2809.2,0.9616]
[1749665666582,15.14824023,2809.6,2809.2,0.1776]
[1749665666904,3.556,2809.5,2808.7,0.795]
[1749665667105,3.556,2809.4,2808.7,0.795]
[1749665667609,3.556,2809.4,2808.4,0.55]
[1749665667816,0.8261,2810.9,2809.3,0.55]
[1749665668017,1.246,2810.7,2809.5,0.55]
[1749665668224,0.29622441,2810.8,2809.7,0.55]
[1749665668373,3.55810371,2810.5,2809.6,0.8269]
[1749665668577,10.8261,2810.5,2809.6,0.8269]
[1749665668770,1.246,2810.4,2809.1,0.8531]
[1749665669016,3.55867389,2810.1,2809.1,0.8531]
[1749665669215,3.556,2810.0,2809.1,0.8531]
[1749665669710,3.556,2809.9,2809.1,0.8531]
[1749665670203,13.58653616,2810.3,2809.1,0.8531]
[1749665670404,3.556,2809.8,2809.1,0.8531]
[1749665670631,7.11448904,2810.2,2809.1,0.8531]
[1749665670783,7.11450977,2810.2,2809.1,0.8531]
[1749665671107,3.55868302,2810.1,2809.1,0.8531]
[1749665671323,10.02819312,2810.0,2809.1,0.8531]
[1749665671801,13.58692831,2810.0,2809.1,0.8531]
[1749665672010,10.02819312,2810.0,2809.1,0.8531]
[1749665672519,3.556,2809.9,2809.1,0.8531]
[1749665673319,3.55920935,2809.7,2809.1,0.8531]
[1749665673618,3.556,2809.9,2809.1,0.8531]
[1749665673836,3.55917861,2809.7,2809.1,0.8531]
[1749665673988,10.02819312,2809.8,2809.1,0.8531]
[1749665674487,13.58792542,2809.2,2809.1,0.04]
[1749665674687,17.14392542,2809.2,2809.1,0.04]
[1749665675103,3.55968789,2809.3,2809.1,0.04]
[1749665675301,10.02819312,2809.5,2809.1,0.04]
[1749665675302,3.556,2809.2,2809.1,0.04]
[1749665675698,13.58764444,2809.5,2809.1,0.04]
[1749665675899,3.556,2809.4,2809.1,0.04]
[1749665676223,3.5597323,2809.2,2809.1,0.04]
[1749665676406,7.11559414,2809.4,2809.1,0.04]
[1749665676722,0.8106,2809.7,2809.1,0.04]
[1749665676930,3.556,2809.3,2809.1,0.04]
[1749665677530,0.29622441,2809.7,2809.2,0.8108]
[1749665678503,3.85322441,2809.7,2809.2,0.8108]
[1749665678687,0.1776,2809.5,2809.2,0.8108]
[1749665679326,0.29622441,2809.7,2809.2,0.8108]
[1749665679591,0.29622441,2809.7,2809.3,0.1776]
[1749665680743,0.29622441,2809.7,2809.2,0.8108]
[1749665680896,0.1776,2809.6,2809.2,0.8108]
[1749665681706,0.29622441,2809.7,2809.3,0.1776]
[1749665682093,0.1776,2809.8,2809.3,0.1776]
[1749665683519,0.1776,2809.8,2809.2,0.8108]
[1749665683705,3.55928642,2809.6,2809.1,0.04]
[1749665683889,3.55936609,2809.5,2809.1,0.04]
[1749665684092,0.1776,2809.8,2809.1,0.04]
[1749665684093,0.9880361,2809.8,2809.2,0.8278]
[1749665684328,0.1776,2809.8,2809.2,0.8278]
[1749665684528,3.557,2810.1,2809.2,0.8278]
[1749665684716,3.557,2810.1,2809.3,0.55]
[1749665684925,3.07483385,2810.7,2809.5,0.55]
[1749665685097,0.81326439,2810.6,2809.5,0.55]
[1749665685302,5.63226439,2810.5,2809.4,0.8278]
[1749665685493,10.02819312,2810.1,2809.4,0.8278]
[1749665686122,10.02819312,2809.8,2809.1,0.04]
[1749665686310,7.1161358,2809.7,2809.1,0.04]
[1749665686523,2.07684251,2809.6,2809.1,0.04]
[1749665686708,1.262,2809.6,2809.1,0.04]
[1749665687334,0.8241,2809.9,2809.1,0.04]
[1749665687514,10.0,2810.1,2809.1,0.04]
[1749665687515,0.81539541,2809.8,2809.2,0.8238]
[1749665687719,2.27243385,2810.2,2809.2,0.8238]
[1749665687950,4.37247533,2810.1,2809.2,0.8238]
[1749665688161,3.557,2810.1,2809.2,0.8238]
[1749665688354,0.81558498,2810.5,2809.3,0.55]
[1749665688653,3.557,2810.5,2809.6,0.8238]
[1749665688839,1.262,2810.9,2809.7,0.4502]
[1749665689040,0.81644885,2810.8,2809.8,0.8238]
[1749665689227,3.557,2810.7,2809.9,0.8238]
[1749665689436,3.557,2810.7,2810.0,1.08519931]
[1749665689624,1.262,2811.1,2809.9,0.8238]
[1749665689823,7.93057707,2811.0,2809.9,0.8238]
[1749665690022,3.55772732,2810.8,2809.9,0.8238]
[1749665690345,0.81604145,2810.7,2809.9,0.8238]
[1749665690523,4.37364412,2810.8,2809.9,0.8238]
[1749665690843,4.32574345,2810.9,2809.9,0.8238]
[1749665691042,0.81586953,2810.8,2809.9,0.8238]
[1749665691454,3.55773103,2810.8,2809.9,0.8238]
[1749665691755,3.55770599,2810.8,2809.9,0.8238]
[1749665691951,0.81570241,2810.8,2809.9,0.8238]
[1749665692155,8.37585582,2810.7,2809.9,0.8238]
[1749665692467,3.55802329,2810.6,2809.9,0.8238]
[1749665692962,0.81557275,2810.6,2809.9,0.8238]
[1749665693146,0.7681,2810.9,2809.9,0.8238]
[1749665693470,3.556,2810.8,2809.9,0.8238]
[1749665693636,0.1776,2810.3,2809.9,0.8238]
[1749665693836,3.556,2810.6,2810.2,0.1776]
[1749665694042,0.1776,2810.5,2810.0,0.1776]
[1749665694650,0.1776,2810.5,2810.1,0.7962]
[1749665695886,0.1776,2810.8,2810.3,0.1776]
[1749665696203,0.1776,2810.8,2810.4,0.7851]
[1749665696335,1.262,2811.2,2810.4,0.7851]
[1749665696536,3.7336,2811.0,2810.5,0.1776]
[1749665696734,0.1776,2811.0,2810.5,0.1776]
[1749665697245,0.1776,2811.0,2810.6,0.7851]
[1749665697481,1.262,2811.6,2810.6,0.7851]
[1749665697634,3.5574017,2811.1,2810.6,0.7851]
[1749665697841,0.1776,2810.6,2810.1,0.7851]
[1749665698477,0.1776,2810.3,2810.1,0.7851]
[1749665699384,0.1776,2810.3,2808.9,0.35133135]
[1749665699385,4.817,2810.7,2809.7,0.8271]
[1749665699598,0.1776,2809.9,2807.9,23.09293141]
[1749665699884,0.1776,2809.2,2808.9,1.0047]
[1749665700194,0.1776,2809.2,2808.9,0.8271]
[1749665700488,0.1776,2809.2,2807.9,23.44203979]
[1749665700489,3.56064609,2808.5,2807.9,13.06473829]
[1749665700717,3.556,2808.4,2807.9,13.06473829]
[1749665700854,0.8152,2808.9,2807.9,13.06473829]
[1749665701188,0.1776,2809.2,2808.2,0.8238]
[1749665701338,0.1776,2809.2,2808.7,0.7995]
[1749665701542,3.556,2809.7,2808.8,0.55]
[1749665701778,3.556,2809.7,2808.7,0.7995]
[1749665702002,0.7989,2810.4,2808.8,0.55]
[1749665702294,3.55856055,2810.2,2808.7,0.7995]
[1749665702450,0.29622441,2810.2,2808.8,0.55]
[1749665702843,3.55917397,2809.7,2808.7,0.7995]
[1749665703072,3.85322441,2809.6,2808.7,0.7995]
[1749665703286,3.85322441,2809.5,2808.7,0.7995]
[1749665703492,0.29622441,2809.4,2808.7,0.7995]
[1749665703781,3.55960559,2809.3,2808.2,0.7654]
[1749665703944,3.85572651,2809.4,2808.2,0.7654]
[1749665704286,3.55985902,2809.1,2808.2,0.7654]
[1749665704446,0.29622441,2809.0,2808.2,0.7654]
[1749665705092,3.557,2808.9,2808.3,0.55]
[1749665705271,0.29622441,2809.0,2808.5,10.55]
[1749665705451,0.29622441,2809.0,2808.8,0.55]
[1749665705832,0.29622441,2809.0,2808.9,1.3757]
[1749665706045,10.02819312,2809.5,2808.5,0.8257]
[1749665706214,0.8265,2809.6,2808.5,0.8257]
[1749665706594,0.7551,2810.1,2808.5,0.8257]
[1749665706831,0.8257,2810.5,2809.1,0.8329]
[1749665707032,9.218,2810.9,2809.5,10.86109312]
[1749665707033,1.274,2810.8,2809.5,10.86109312]
[1749665707255,0.29622441,2810.4,2809.6,10.0]
[1749665707393,10.02819312,2810.0,2808.7,0.7981]
[1749665707601,3.557,2809.9,2808.7,0.7981]
[1749665707798,3.557,2809.8,2808.7,0.7981]
[1749665708327,3.557,2809.7,2808.7,0.7981]
[1749665708503,13.58519312,2809.7,2808.7,0.7981]
[1749665708830,5.61254092,2810.2,2808.7,0.7981]
[1749665708831,3.55875299,2810.0,2808.7,0.7981]
[1749665709029,3.557,2809.6,2808.7,0.7981]
[1749665709231,3.55961692,2809.3,2808.7,0.7981]
[1749665709429,3.557,2809.6,2808.1,0.04]
[1749665709430,10.02819312,2809.2,2808.1,0.04]
[1749665709650,3.56017692,2808.9,2808.1,0.04]
[1749665709948,10.02819312,2809.2,2808.1,0.04]
[1749665710161,3.5604614,2808.7,2808.1,0.04]
[1749665710304,0.8009,2808.4,2808.1,0.04]
[1749665710705,3.56052248,2808.6,2808.1,0.04]
[1749665710706,3.557,2808.3,2808.1,0.04]
[1749665711852,1.274,2809.3,2808.2,0.8176]
[1749665712058,1.274,2809.3,2808.3,0.55]
[1749665712211,0.1776,2809.0,2808.5,0.1776]
[1749665712712,0.1776,2808.7,2808.2,0.8176]
[1749665712961,10.02819312,2809.2,2808.2,0.8176]
[1749665712962,3.557,2808.6,2808.2,0.8176]
[1749665713131,3.557,2808.5,2808.2,0.8176]
[1749665713342,0.1776,2808.2,2808.1,0.04]
[1749665716547,3.73859992,2808.2,2808.1,0.04]
[1749665716749,13.76679304,2808.2,2808.1,0.04]
[1749665717123,8.57059992,2808.2,2808.1,0.04]
[1749665717536,28.59879304,2808.2,2808.1,0.04]
[1749665717739,14.32405356,2808.0,2807.9,13.06473829]
[1749665718040,14.68856219,2808.0,2807.9,13.06473829]
[1749665718249,45.23856219,2808.0,2807.9,6.17601892]
[1749665718435,22.45967519,2808.0,2807.9,5.06462787]
[1749665718748,11.42353304,2808.0,2807.9,5.06462787]
[1749665718949,3.85422441,2808.0,2807.9,5.06462787]
[1749665719155,0.29622441,2808.0,2807.9,5.06462787]
[1749665719315,0.29622441,2808.0,2807.9,5.65024066]
[1749665719523,0.47382441,2808.0,2807.9,5.65024066]
[1749665719930,0.47382441,2808.0,2807.9,5.06462787]
[1749665720827,4.03182441,2808.0,2807.9,5.06462787]
[1749665721552,3.85422441,2808.0,2807.9,5.06462787]
[1749665721752,0.29622441,2808.0,2807.9,5.06462787]
[1749665722054,3.85422441,2808.0,2807.9,5.06462787]
[1749665722438,7.41547797,2808.0,2807.9,5.06462787]
[1749665722749,7.91805356,2808.0,2807.9,5.06462787]
[1749665722956,4.36106845,2807.2,2807.1,0.04]
[1749665723266,19.22226157,2807.2,2807.1,0.04]
[1749665723549,19.33355315,2807.2,2807.1,0.04]
[1749665723752,29.33355315,2807.2,2807.1,0.04]
[1749665723954,29.22226157,2807.2,2807.1,0.04]
[1749665724114,29.33357338,2807.2,2807.1,0.04]
[1749665724312,29.22226157,2807.2,2807.1,0.04]
[1749665724537,54.38926157,2807.2,2807.1,0.04]
[1749665724742,59.33357687,2807.2,2807.1,0.04]
[1749665724980,29.58275275,2807.2,2807.1,0.04]
[1749665725273,19.55455963,2807.2,2807.1,0.04]
[1749665725599,14.72155963,2807.2,2807.1,0.04]
[1749665725741,19.55455963,2807.2,2807.1,0.04]
[1749665725941,19.66586826,2807.2,2807.1,0.04]
[1749665726160,50.10455963,2807.2,2807.1,0.04]
[1749665726442,50.10455963,2807.2,2805.7,0.66666667]
[1749665726443,3.5640459,2805.8,2805.7,0.66666667]
[1749665726640,18.3980459,2805.8,2805.7,0.66666667]
[1749665726873,13.56442701,2805.5,2805.4,13.32644628]
[1749665727174,18.39842701,2805.5,2805.4,13.32644628]
[1749665727393,30.68567956,2805.5,2805.4,13.32644628]
[1749665727608,62.40750495,2805.5,2803.8,0.806]
[1749665727744,10.0,2804.8,2803.1,0.04]
[1749665727941,0.7832,2804.3,2803.1,0.04]
[1749665728146,0.11141999,2804.2,2803.1,0.04]
[1749665728390,0.35749655,2804.4,2803.1,0.04]
[1749665728559,3.559,2804.1,2803.1,0.04]
[1749665728754,0.11140003,2804.0,2803.1,0.04]
[1749665728984,0.35749655,2804.4,2803.1,0.04]
[1749665729143,3.88498516,2805.8,2803.1,0.39411218]
[1749665729343,3.56493367,2805.2,2803.2,10.0]
[1749665729602,3.56493367,2805.2,2803.4,0.55]
[1749665729603,3.67237593,2805.1,2803.4,0.55]
[1749665729886,0.11137652,2805.0,2803.4,10.55]
[1749665730085,4.24714858,2805.8,2803.5,0.55]
[1749665730283,3.5642938,2805.7,2803.5,0.55]
[1749665730443,0.1776,2804.7,2804.2,0.1776]
[1749665730644,0.1776,2804.7,2804.3,0.8251]
[1749665730838,20.85287794,2806.4,2804.4,0.1776]
[1749665730839,0.1776,2804.9,2804.4,0.1776]
[1749665731042,3.7386,2804.9,2804.4,0.1776]
[1749665731255,0.35724717,2805.8,2804.3,0.8251]
[1749665731483,3.56303,2806.6,2804.7,0.55]
[1749665731667,2.1072,2806.7,2804.7,0.55]
[1749665731668,0.1776,2805.6,2805.1,0.1776]
[1749665731983,3.7386,2805.6,2805.1,0.1776]
[1749665732152,3.561,2805.6,2804.9,0.8251]
[1749665732356,2.1072,2806.7,2805.0,0.55]
[1749665732357,0.7832,2806.7,2805.0,0.55]
[1749665732556,3.562,2806.6,2804.9,0.8251]
[1749665732873,0.1776,2805.6,2805.1,0.1776]
[1749665733197,0.1776,2805.6,2804.9,0.8251]
[1749665733198,3.562,2805.6,2804.9,0.8251]
[1749665733345,0.1776,2805.2,2804.9,0.8251]
[1749665734147,3.562,2805.1,2803.5,11.62587794]
[1749665734387,0.1776,2805.2,2804.0,10.0]
[1749665734592,0.1776,2805.2,2804.1,0.8258]
[1749665734787,0.1776,2805.2,2804.2,0.55]
[1749665735083,3.562,2805.1,2804.3,0.8258]
[1749665735496,0.8134,2806.2,2804.3,0.8258]
[1749665735497,3.562,2805.0,2804.3,0.8258]
[1749665736080,3.562,2805.5,2804.6,0.55]
[1749665736241,3.562,2805.4,2804.5,0.8258]
[1749665736747,3.562,2805.4,2804.2,10.55]
[1749665736748,3.56320934,2806.5,2804.8,0.55]
[1749665736948,3.562,2806.4,2805.0,0.55]
[1749665737162,3.562,2806.4,2804.9,0.8278]
[1749665737376,0.1113186,2806.3,2805.2,0.55]
[1749665737699,1.324,2806.6,2805.1,0.8278]
[1749665737700,3.562,2806.2,2805.1,0.8278]
[1749665738306,3.56375221,2806.1,2805.1,0.8278]
[1749665738462,3.562,2806.2,2805.1,0.8278]
[1749665738658,4.3852,2806.2,2805.1,0.8278]
[1749665739061,3.56409242,2805.8,2805.1,0.8278]
[1749665739266,3.56381538,2806.0,2805.1,0.8278]
[1749665739493,3.562,2805.7,2805.1,0.8278]
[1749665739688,3.562,2805.7,2804.4,0.8245]
[1749665740010,3.56449972,2805.5,2804.4,0.8245]
[1749665740303,0.7628,2805.6,2804.4,0.8245]
[1749665740606,4.886,2805.5,2804.4,0.8245]
[1749665740819,4.36755692,2806.3,2804.4,0.8245]
[1749665740820,3.562,2805.4,2804.4,0.8245]
[1749665741013,3.562,2805.3,2804.4,0.8245]
[1749665741183,11.62587794,2805.1,2804.0,0.7847]
[1749665741513,1.325,2805.0,2804.0,0.7847]
[1749665741678,4.89009041,2805.0,2804.0,0.7847]
[1749665741866,0.8211,2805.2,2804.0,0.7847]
[1749665742062,4.887,2805.1,2804.0,0.7847]
[1749665742268,4.887,2805.1,2803.2,12.17587794]
[1749665742269,3.56506238,2805.0,2803.2,0.7847]
[1749665742479,0.11138038,2805.0,2803.2,0.7847]
[1749665742811,3.5653166,2804.8,2803.2,0.7847]
[1749665743013,3.56602788,2804.3,2803.2,0.7847]
[1749665743172,7.12810873,2804.2,2803.2,0.7847]
[1749665743371,3.562,2804.2,2803.2,0.7847]
[1749665743584,0.7742,2804.1,2803.2,0.7847]
[1749665743984,3.56665723,2803.8,2803.2,0.7847]
[1749665744205,0.7742,2804.1,2803.2,0.7847]
[1749665744371,3.56666138,2803.8,2803.2,0.7847]
[1749665744575,0.7742,2804.1,2803.2,0.7847]
[1749665744772,1.00479777,2804.7,2803.2,0.7847]
[1749665744773,0.1776,2803.3,2803.2,0.7847]
[1749665744971,3.563,2804.0,2803.2,0.7847]
[1749665745279,0.1776,2803.4,2803.2,0.7847]
[1749665745480,3.563,2804.0,2803.1,0.04]
[1749665745481,3.566461,2803.9,2803.1,0.04]
[1749665745688,3.563,2804.0,2803.1,0.04]
[1749665745927,8.45452853,2803.9,2803.1,0.04]
[1749665746073,0.7813,2804.1,2803.1,0.04]
[1749665746271,4.888,2804.0,2803.1,0.04]
[1749665746466,4.3475944,2804.1,2803.1,0.04]
[1749665746705,0.1776,2803.3,2803.1,0.04]
[1749665747480,3.7406,2803.3,2803.1,0.04]
[1749665747684,0.1776,2803.3,2803.1,0.04]
[1749665747882,0.1776,2803.3,2803.2,0.8152]
[1749665749523,0.11140645,2804.5,2803.2,4.38248868]
[1749665749724,0.3533618,2806.0,2804.4,0.751]
[1749665749910,0.8057,2806.3,2804.8,10.0]
[1749665750095,3.56367262,2806.1,2804.8,0.751]
[1749665750308,0.11132855,2806.0,2804.3,0.751]
[1749665750550,0.8057,2806.3,2804.3,0.751]
[1749665750551,1.80900169,2806.1,2804.3,0.751]
[1749665750864,1.80900169,2806.1,2803.5,0.90977813]
[1749665750865,5.80464718,2806.0,2804.5,0.7649]
[1749665751125,5.00034565,2805.9,2804.5,0.7649]
[1749665751337,3.86022441,2805.8,2804.7,0.7649]
[1749665751619,0.40754982,2805.7,2805.1,0.7649]
[1749665751807,1.1160322,2806.6,2805.2,0.55]
[1749665751808,0.40754816,2805.6,2805.2,0.55]
[1749665752117,0.29622441,2805.5,2805.1,0.55]
[1749665752419,0.11131584,2805.4,2805.2,0.7649]
[1749665752619,0.29622441,2805.3,2805.2,1.3149]
[1749665752794,0.29622441,2805.3,2805.2,0.7649]
[1749665753203,0.40754544,2805.3,2805.2,0.7649]
[1749665753398,0.29622441,2805.3,2805.2,0.7649]
[1749665753613,3.563,2805.4,2804.0,0.8196]
[1749665753785,3.563,2805.3,2804.3,0.8196]
[1749665754011,3.56435421,2805.6,2804.3,0.8196]
[1749665754012,0.80430313,2805.6,2804.5,0.8258]
[1749665754213,4.36730313,2805.9,2804.8,1.3758]
[1749665754420,0.80430313,2806.3,2804.8,1.3758]
[1749665754604,0.80430313,2806.3,2804.7,11.62587794]
[1749665754605,3.563,2806.0,2805.0,0.55]
[1749665755237,0.29622441,2805.9,2805.0,0.55]
[1749665756031,0.29622441,2805.9,2805.2,0.55]
[1749665756334,0.29622441,2805.9,2805.3,0.8052]
[1749665756838,0.29622441,2805.9,2805.4,0.55]
[1749665757046,0.29622441,2805.9,2804.8,10.0]
[1749665757047,0.29622441,2805.9,2805.6,0.55]
[1749665757210,0.29622441,2805.9,2805.8,0.55]
[1749665757418,0.29622441,2805.9,2805.8,1.5147]
[1749665757616,0.11133364,2806.6,2805.9,0.6814]
[1749665757811,0.11133364,2806.6,2806.5,0.55]
[1749665758112,0.11133364,2806.6,2806.5,1.2314]
[1749665758323,1.341,2807.9,2806.4,0.55]
[1749665758527,1.80900169,2808.7,2806.8,0.55]
[1749665758735,3.56069538,2808.5,2807.3,0.55]
[1749665758907,3.563,2808.6,2807.2,0.5371]
[1749665758908,7.12357492,2808.6,2807.2,0.5371]
[1749665759107,3.563,2808.6,2807.2,0.5371]
[1749665759302,3.56070375,2808.5,2807.2,0.5371]
[1749665759507,3.563,2808.6,2807.3,0.55]
[1749665759703,3.562,2808.5,2807.5,0.55]
[1749665759903,0.1776,2808.0,2807.5,0.1776]
[1749665760318,7.12264192,2808.5,2807.4,0.7716]
[1749665760602,0.1776,2807.8,2807.4,0.7716]
[1749665760807,0.1776,2807.4,2807.0,0.7547]
[1749665761019,3.56112674,2808.1,2806.8,0.1776]
[1749665761020,0.1776,2807.3,2806.8,0.1776]
[1749665761253,0.1776,2806.8,2806.1,0.9801]
[1749665761438,0.1776,2806.2,2806.1,0.8025]
[1749665761837,0.1776,2806.2,2805.0,0.8025]
[1749665761838,1.5176,2806.2,2805.0,0.8025]
[1749665762026,3.56383959,2806.0,2805.0,1.1001052]
[1749665762228,13.14347794,2806.2,2804.2,0.8025]
[1749665762229,3.56493529,2805.1,2804.2,0.8025]
[1749665762555,0.1776,2806.2,2804.2,0.8025]
[1749665762727,3.56379187,2806.0,2804.2,0.8025]
[1749665762930,3.56491412,2805.2,2804.2,1.88925]
[1749665763131,3.56444692,2805.5,2804.2,0.8025]
[1749665763329,10.80549706,2806.2,2804.2,0.8025]
[1749665763628,10.80549706,2806.2,2804.9,0.8198]
[1749665763629,1.34,2806.2,2804.9,0.8198]
[1749665763834,1.34,2806.2,2805.0,0.55]
[1749665764422,4.90354788,2806.2,2805.0,0.55]
[1749665764617,1.34,2806.2,2805.0,0.55]
[1749665764818,3.561,2806.1,2804.9,0.8198]
[1749665765054,3.561,2806.1,2805.0,0.55]
[1749665765456,7.12476181,2806.1,2805.0,0.55]
[1749665765763,1.34,2806.2,2805.0,0.55]
[1749665765764,1.34,2806.2,2805.2,0.55]
[1749665765962,1.34,2806.2,2805.1,10.0]
[1749665765963,1.34,2806.2,2805.4,0.55]
[1749665766172,3.561,2806.5,2805.4,0.55]
[1749665766476,3.561,2806.5,2805.5,0.0289855]
[1749665766655,3.561,2806.6,2805.8,0.55]
[1749665766973,9.233,2807.0,2805.8,0.55]
[1749665766974,3.561,2806.8,2805.8,0.55]
[1749665767174,3.561,2806.8,2805.9,0.0289855]
[1749665767322,9.233,2807.0,2805.9,0.0289855]
[1749665767523,3.561,2806.9,2806.0,0.55]
[1749665767830,9.233,2807.0,2806.2,0.55]
[1749665768173,3.561,2807.1,2806.1,0.8181855]
[1749665768379,3.56283755,2806.8,2806.1,0.7892]
[1749665768531,0.7742,2807.0,2806.2,0.0289855]
[1749665768725,3.562852,2806.8,2806.2,0.0289855]
[1749665768929,3.56266512,2806.9,2806.2,0.0289855]
[1749665769158,3.56278669,2806.8,2806.2,0.0289855]
[1749665769329,3.56341089,2806.3,2806.2,0.0289855]
[1749665769528,8.46441089,2806.3,2806.2,0.0289855]
[1749665769860,9.23581089,2806.3,2806.2,0.0289855]
[1749665770427,0.7714,2806.3,2806.2,0.0289855]
[1749665770627,9.23581089,2806.3,2806.2,0.0289855]
[1749665771170,5.6724,2806.3,2806.2,0.0289855]
[1749665771379,4.901,2806.3,2806.2,0.0289855]
[1749665771832,8.46441089,2806.3,2806.2,0.0289855]
[1749665773252,52.97781089,2806.3,2806.2,0.0289855]
[1749665773630,25.84722489,2806.3,2806.2,0.0289855]
[1749665773966,19.23681089,2806.3,2806.2,0.0289855]
[1749665774166,9.23781089,2806.3,2806.2,0.0289855]
[1749665774879,4.33581089,2806.3,2806.2,0.0289855]
[1749665775053,5.67581089,2806.3,2806.2,0.0289855]
[1749665775254,0.7724,2806.3,2806.2,0.0289855]
[1749665775453,1.34,2806.8,2806.2,0.0289855]
[1749665775656,0.1776,2806.4,2806.2,0.8504855]
[1749665776152,11.62587794,2808.4,2806.2,0.8504855]
[1749665776350,1.35535231,2808.7,2806.2,0.8504855]
[1749665776351,1.34,2808.0,2806.6,0.7883]
[1749665776587,0.1776,2807.2,2806.8,0.1776]
[1749665776942,0.1776,2807.2,2806.9,0.0289855]
[1749665777389,3.561,2807.4,2807.0,0.1776]
[1749665777705,0.1776,2807.5,2807.1,0.7696]
[1749665777841,0.7578,2808.3,2807.1,0.7985855]
[1749665778040,0.7526,2808.8,2807.2,0.55]
[1749665778249,3.55976504,2809.2,2807.6,0.7696]
[1749665778250,4.901,2808.7,2807.6,0.7696]
[1749665778558,4.901,2808.7,2807.7,0.0289855]
[1749665778559,1.34,2808.7,2807.7,0.0289855]
[1749665778754,3.56084139,2808.4,2807.7,0.0289855]
[1749665778953,0.1776,2807.8,2807.7,0.0289855]
[1749665779242,3.56025118,2808.8,2807.7,0.0289855]
[1749665779436,0.1776,2808.0,2807.7,0.0289855]
[1749665779669,3.7386,2808.0,2807.7,0.0289855]
[1749665779980,0.1776,2807.8,2807.7,0.0289855]
[1749665780384,3.7386,2807.8,2807.7,0.0289855]
[1749665781251,7.30010722,2807.8,2807.7,0.0289855]
[1749665781454,8.07360722,2807.8,2807.7,0.0289855]
[1749665781651,4.5121,2807.8,2807.7,0.0289855]
[1749665781879,3.7386,2807.8,2807.7,0.0289855]
[1749665782083,7.30010722,2807.8,2807.7,0.0289855]
[1749665782384,0.7781,2806.9,2805.8,0.7988]
[1749665782681,3.56309986,2806.6,2805.9,0.29750975]
[1749665782980,0.1776,2806.0,2805.9,0.29750975]
[1749665783185,3.7376,2806.0,2805.9,0.29750975]
[1749665783544,0.1776,2806.0,2805.9,0.29750975]
[1749665783742,0.7535,2807.6,2805.9,11.92338769]
[1749665783969,7.12190151,2807.5,2806.0,1.97813877]
[1749665784168,3.56210088,2807.4,2806.0,1.97813877]
[1749665784367,3.56,2807.3,2806.0,1.97813877]
[1749665785857,3.56253083,2807.0,2806.0,0.7858]
[1749665786061,3.56,2807.3,2806.0,0.7858]
[1749665786062,7.12217204,2807.3,2806.0,0.7858]
[1749665786378,4.9,2807.2,2806.0,0.7858]
[1749665786888,3.56191659,2807.5,2806.1,0.55]
[1749665787072,3.56,2807.1,2806.0,0.7858]
[1749665787284,3.56260169,2807.0,2806.0,0.7858]
[1749665787493,3.56,2807.1,2806.0,0.7858]